bitfinex/quotes_SOLUSD_20241210
["timestamp","ask_amount","ask_price","bid_price","bid_amount"]
[1733825345504,0.12549,217.95,217.82,28.90357663]
[1733825345886,0.12549,217.95,217.84,8.90357663]
[1733825346091,0.12549,217.95,217.79,0.68841293]
[1733825346289,0.12549,217.95,217.83,8.90357663]
[1733825346605,0.12549,217.95,217.84,8.90357663]
[1733825346984,0.12549,217.95,217.83,8.90357663]
[1733825347395,6.0104,217.94,217.81,0.68841632]
[1733825347588,6.0104,217.94,217.82,8.90357663]
[1733825347790,6.0104,217.94,217.81,0.68841632]
[1733825347996,6.0104,217.94,217.81,9.59199295]
[1733825348213,6.0104,217.94,217.81,8.90357663]
[1733825348508,20.0,217.91,217.76,0.68851931]
[1733825348715,1.554,217.9,217.76,8.90357663]
[1733825349087,6.0104,217.88,217.76,8.90357663]
[1733825349290,6.0104,217.88,217.75,8.90357663]
[1733825349515,6.0104,217.88,217.76,8.90357663]
[1733825349727,6.0104,217.88,217.77,8.90357663]
[1733825349886,6.0104,217.88,217.76,8.90357663]
[1733825352721,6.0104,217.88,217.75,8.90357663]
[1733825353420,20.0,217.85,217.72,0.68865069]
[1733825353617,20.0,217.85,217.64,11.4863]
[1733825353618,6.046,217.83,217.69,8.90357663]
[1733825353989,6.046,217.83,217.7,9.59242012]
[1733825354412,6.046,217.83,217.69,8.90357663]
[1733825354588,6.046,217.83,217.68,8.90357663]
[1733825354589,0.12549,217.81,217.68,8.90357663]
[1733825354989,1.6268,217.82,217.7,8.90357663]
[1733825356523,20.0,217.8,217.65,332.68885725]
[1733825356815,20.0,217.8,217.67,8.90357663]
[1733825357002,20.0,217.8,217.67,9.59251351]
[1733825357391,1.6268,217.82,217.7,8.90357663]
[1733825357613,1.6268,217.82,217.71,8.90357663]
[1733825358302,1.6268,217.82,217.72,0.68882384]
[1733825358816,1.6268,217.82,217.7,8.90357663]
[1733825359198,1.6268,217.82,217.68,28.90357663]
[1733825359514,0.12549,217.79,217.66,9.5923813]
[1733825360016,0.12549,217.79,217.67,8.90357663]
[1733825360222,0.12549,217.79,217.67,9.59252115]
[1733825361103,0.12549,217.79,217.67,8.90357663]
[1733825361622,20.0,217.8,217.68,8.90357663]
[1733825361798,1.6268,217.82,217.71,8.90357663]
[1733825362824,1.6268,217.82,217.72,9.59238624]
[1733825363128,1.6268,217.82,217.7,8.90357663]
[1733825363296,1.6268,217.82,217.7,9.59240596]
[1733825363512,1.6268,217.82,217.71,8.90357663]
[1733825364136,1.6268,217.82,217.7,9.59240596]
[1733825364309,1.6268,217.82,217.71,0.68881172]
[1733825366328,1.6268,217.82,217.67,312.68881388]
[1733825366645,1.6268,217.82,217.64,1.5268]
[1733825366646,0.12549,217.81,217.68,8.90357663]
[1733825369157,1.6268,217.82,217.7,8.90357663]
[1733825369315,1.6268,217.82,217.71,9.59239726]
[1733825369512,1.6268,217.82,217.69,28.90357663]
[1733825369724,0.12549,217.81,217.69,20.0]
[1733825369925,0.12549,217.81,217.69,8.90357663]
[1733825370125,0.12549,217.81,217.68,8.90357663]
[1733825370321,20.0,217.76,217.63,0.68892201]
[1733825370530,20.0,217.76,217.63,8.90357663]
[1733825370742,1.6496,217.74,217.58,1.5361]
[1733825371044,1.6496,217.74,217.61,8.90357663]
[1733825371724,1.6496,217.74,217.63,8.90357663]
[1733825371925,1.6496,217.74,217.62,0.68912072]
[1733825371926,1.6496,217.74,217.66,8.90357663]
[1733825372135,1.6496,217.74,217.67,8.90357663]
[1733825372436,1.6496,217.74,217.68,8.90357663]
[1733825372628,1.6496,217.74,217.67,8.90357663]
[1733825373031,1.6496,217.74,217.66,8.90357663]
[1733825373237,1.6496,217.74,217.65,8.90357663]
[1733825375027,1.6496,217.74,217.66,8.90357663]
[1733825375339,1.6496,217.74,217.66,13.93577337]
[1733825377429,1.6496,217.74,217.64,13.93577337]
[1733825380141,1.6496,217.74,217.66,13.93577337]
[1733825381027,1.6496,217.74,217.65,0.68901426]
[1733825382633,1.6496,217.74,217.6,312.12549]
[1733825382634,1.6496,217.74,217.63,13.93577337]
[1733825383451,1.6496,217.74,217.62,13.93577337]
[1733825386449,1.6496,217.74,217.67,13.93577337]
[1733825386649,6.5871,217.79,217.73,13.93577337]
[1733825387053,6.5871,217.79,217.71,13.93577337]
[1733825387360,6.5871,217.79,217.69,13.93577337]
[1733825387547,6.5871,217.79,217.7,13.93577337]
[1733825387752,6.28415745,217.79,217.7,13.93577337]
[1733825388133,6.28415745,217.79,217.71,13.93577337]
[1733825388335,6.28415745,217.79,217.72,13.93577337]
[1733825389060,6.28415745,217.79,217.71,13.93577337]
[1733825390750,6.28415745,217.79,217.7,13.93577337]
[1733825393952,6.28415745,217.79,217.71,13.93577337]
[1733825394147,6.28415745,217.79,217.72,13.93577337]
[1733825394349,6.28415745,217.79,217.73,13.93577337]
[1733825395071,6.28415745,217.79,217.66,2.27066756]
[1733825395072,1.5762,217.8,217.74,14.62452564]
[1733825395271,1.5762,217.8,217.74,9.60066677]
[1733825395780,6.0905,217.84,217.76,8.9119145]
[1733825395946,6.0905,217.84,217.78,8.9119145]
[1733825396673,6.0905,217.84,217.77,8.9119145]
[1733825396869,6.0905,217.84,217.72,20.0]
[1733825397211,6.0905,217.84,217.77,8.9119145]
[1733825397469,6.0905,217.84,217.78,8.9119145]
[1733825398270,6.0905,217.84,217.77,8.9119145]
[1733825398846,1.5054,217.85,217.78,9.6005231]
[1733825399871,1.5054,217.85,217.77,8.9119145]
[1733825400849,1.5054,217.85,217.78,0.68859449]
[1733825401072,1.5054,217.85,217.78,9.60050899]
[1733825401267,1.5054,217.85,217.79,8.9119145]
[1733825401788,1.5054,217.85,217.78,8.9119145]
[1733825404469,1.5054,217.85,217.77,8.9119145]
[1733825404714,23.776884,217.84,217.73,8.9119145]
[1733825405005,23.776884,217.84,217.72,8.9119145]
[1733825405168,23.776884,217.82,217.67,0.68881731]
[1733825405369,23.776884,217.82,217.7,8.9119145]
[1733825406402,23.776884,217.82,217.67,0.68881731]
[1733825406601,0.12549,217.81,217.69,8.9119145]
[1733825406785,1.5054,217.8,217.69,8.9119145]
[1733825406984,23.776884,217.79,217.69,8.9119145]
[1733825407706,23.776884,217.79,217.7,8.9119145]
[1733825408577,23.776884,217.79,217.65,0.68884624]
[1733825408803,23.776884,217.79,217.69,8.9119145]
[1733825409214,23.776884,217.79,217.58,7.23460837]
[1733825409215,20.0,217.71,217.58,7.23460837]
[1733825409388,0.68884624,217.78,217.49,1.87859917]
[1733825409389,23.902374,217.61,217.49,1.87859917]
[1733825409699,23.776884,217.59,217.48,9.59312913]
[1733825409902,0.68884624,217.58,217.48,0.68955313]
[1733825410110,2.19424624,217.64,217.45,8.9119145]
[1733825410284,23.776884,217.63,217.47,8.9119145]
[1733825410475,23.776884,217.63,217.5,20.0]
[1733825410674,24.46573024,217.63,217.51,0.6893307]
[1733825411601,24.46573024,217.63,217.51,332.6893307]
[1733825411800,24.46573024,217.63,217.51,332.0]
[1733825412392,0.68884624,217.63,217.51,332.0]
[1733825412601,2.19424624,217.64,217.51,332.0]
[1733825413217,23.776884,217.63,217.52,0.68929123]
[1733825413379,24.46573024,217.63,217.52,20.68929123]
[1733825415176,7.6376,217.69,217.62,13.95747301]
[1733825415376,7.6376,217.69,217.63,13.95747301]
[1733825415683,1.5471,217.75,217.65,13.95747301]
[1733825415890,0.68884624,217.74,217.65,13.95747301]
[1733825416992,23.776884,217.73,217.65,13.95747301]
[1733825418320,6.4532,217.78,217.7,13.95747301]
[1733825418513,6.4532,217.78,217.72,13.95747301]
[1733825418826,6.4532,217.78,217.73,13.95747301]
[1733825418982,6.4532,217.78,217.71,0.68881709]
[1733825419175,6.4532,217.78,217.67,0.25098]
[1733825419387,6.4532,217.78,217.71,13.95747301]
[1733825420487,6.4532,217.78,217.66,20.0]
[1733825420488,6.4532,217.78,217.72,14.64627142]
[1733825421014,6.4532,217.83,217.75,13.95747301]
[1733825421180,6.4532,217.83,217.77,13.95747301]
[1733825421977,6.4532,217.83,217.81,13.95747301]
[1733825422184,1.5471,217.86,217.82,13.95747301]
[1733825422401,1.5471,217.86,217.81,13.95747301]
[1733825423682,1.5471,217.86,217.8,13.95747301]
[1733825425319,6.4532,217.88,217.8,13.95747301]
[1733825427013,6.4532,217.88,217.81,13.95747301]
[1733825427428,0.68884624,217.97,217.87,13.95747301]
[1733825427429,6.428,217.95,217.87,13.95747301]
[1733825427598,0.68884624,217.94,217.87,13.95747301]
[1733825427799,0.68884624,217.94,217.86,13.95747301]
[1733825429740,0.68884624,217.94,217.85,13.95747301]
[1733825430225,0.68884624,217.94,217.84,13.95747301]
[1733825430405,0.68884624,217.94,217.83,13.95747301]
[1733825430809,0.68884624,217.94,217.74,1.89097542]
[1733825430810,0.68884624,217.94,217.82,13.95747301]
[1733825431225,0.68884624,217.94,217.83,13.95747301]
[1733825435438,0.68884624,217.94,217.82,13.95747301]
[1733825438048,0.68884624,217.94,217.81,13.95747301]
[1733825438227,20.0,217.92,217.81,13.95747301]
[1733825438423,0.68884624,217.91,217.81,13.95747301]
[1733825438640,0.68884624,217.91,217.77,20.12549]
[1733825438840,0.68884624,217.91,217.8,13.95747301]
[1733825440957,0.68884624,217.91,217.81,13.95747301]
[1733825441158,0.68884624,217.91,217.79,0.12549]
[1733825441469,0.68884624,217.91,217.81,13.95747301]
[1733825442468,1.5884,217.9,217.8,13.95747301]
[1733825442638,0.68884624,217.89,217.8,13.95747301]
[1733825443440,1.5884,217.9,217.81,13.95747301]
[1733825443764,1.5884,217.9,217.82,13.95747301]
[1733825445145,1.5884,217.9,217.84,13.95747301]
[1733825445366,0.68884624,217.94,217.85,14.64584377]
[1733825446268,8.0164,217.95,217.86,13.95747301]
[1733825446573,8.0164,217.95,217.86,14.64576827]
[1733825446775,8.0164,217.95,217.87,14.08296301]
[1733825447275,8.0164,217.95,217.87,326.08296301]
[1733825448054,8.0164,217.95,217.87,325.95747301]
[1733825448247,8.0164,217.95,217.87,312.0]
[1733825448568,8.0164,217.95,217.86,13.95747301]
[1733825449973,0.68884624,217.94,217.84,13.95747301]
[1733825450271,0.68884624,217.94,217.83,14.64579224]
[1733825450447,6.2034,217.93,217.76,10.0]
[1733825450645,0.12549,217.76,217.69,18.379177]
[1733825450866,0.12549,217.76,217.52,12.82385851]
[1733825450867,0.86140637,217.76,217.62,0.34535726]
[1733825451064,20.0,217.75,217.56,0.34537488]
[1733825451264,0.86140637,217.76,217.56,0.34537488]
[1733825451265,20.0,217.73,217.56,0.34537488]
[1733825451473,0.86140004,217.72,217.56,0.34537488]
[1733825451860,20.0,217.71,217.56,0.34537488]
[1733825452054,0.8614444,217.7,217.57,0.34572333]
[1733825453495,0.8614444,217.7,217.57,20.34572333]
[1733825454072,0.86139232,217.81,217.68,22.31926659]
[1733825454277,0.86103334,217.88,217.69,0.34490121]
[1733825454570,10.0,217.89,217.66,22.31926659]
[1733825454571,0.86103334,217.79,217.66,22.31926659]
[1733825455481,20.0,217.77,217.66,22.66438382]
[1733825455787,20.0,217.77,217.66,0.34511723]
[1733825455963,0.86112559,217.76,217.66,0.34511723]
[1733825456475,20.0,217.77,217.66,22.66438382]
[1733825457274,0.86109816,217.76,217.66,22.66438382]
[1733825457476,20.0,217.77,217.66,22.66438382]
[1733825457977,20.0,217.77,217.66,0.34511723]
[1733825458181,0.86110305,217.76,217.61,22.31926659]
[1733825458378,0.12549,217.75,217.58,22.31926659]
[1733825458691,0.86143536,217.74,217.57,22.31926659]
[1733825458869,0.25098,217.73,217.57,22.31926659]
[1733825459052,0.25098,217.73,217.54,0.34554468]
[1733825459053,20.0,217.67,217.54,0.34554468]
[1733825459378,0.86160507,217.66,217.52,22.31926659]
[1733825459568,0.86160507,217.66,217.53,22.66531794]
[1733825460456,0.86160507,217.66,217.53,0.34605135]
[1733825460656,0.86160507,217.66,217.54,0.34612981]
[1733825461867,0.86160507,217.66,217.53,0.47157113]
[1733825462274,0.86160507,217.66,217.29,20.0]
[1733825462275,20.0,217.62,217.41,0.5662334]
[1733825462463,0.86187356,217.61,217.45,22.31926659]
[1733825462776,0.86187356,217.61,217.46,22.6658479]
[1733825463585,0.86187356,217.61,217.47,0.12549]
[1733825463787,0.86187356,217.61,217.48,0.34652945]
[1733825464990,0.86187356,217.61,217.49,22.44475659]
[1733825465186,0.86187356,217.61,217.5,0.34632152]
[1733825466070,0.86187356,217.61,217.5,22.66558811]
[1733825466785,0.86173933,217.64,217.53,22.31926659]
[1733825466985,0.86173933,217.64,217.54,22.66539128]
[1733825467484,6.2034,217.65,217.57,22.31926659]
[1733825467694,1.5884,217.67,217.61,22.31926659]
[1733825467872,6.2838,217.71,217.52,6.47599]
[1733825467873,6.2838,217.71,217.62,22.66478426]
[1733825468197,6.2838,217.71,217.64,22.31926659]
[1733825468493,6.2838,217.77,217.68,22.31926659]
[1733825468786,0.86107845,217.76,217.65,0.34527566]
[1733825469561,0.86107845,217.76,217.65,22.66454225]
[1733825470772,7.14501771,217.77,217.68,22.31926659]
[1733825470975,6.2838,217.77,217.68,22.31926659]
[1733825471173,7.14488126,217.77,217.68,22.31926659]
[1733825472270,20.0,217.74,217.55,0.34504403]
[1733825472492,0.98694493,217.73,217.57,22.31926659]
[1733825472704,0.12549,217.71,217.55,22.66431062]
[1733825472877,0.98706671,217.71,217.55,22.66431062]
[1733825473902,0.98706671,217.71,217.55,20.34504403]
[1733825474071,0.98706671,217.71,217.55,0.34504403]
[1733825474579,0.98706671,217.71,217.55,42.66431062]
[1733825475295,0.98706671,217.71,217.55,20.34504403]
[1733825476979,0.98706671,217.71,217.55,42.66431062]
[1733825477583,0.98706671,217.71,217.55,22.66431062]
[1733825478993,0.86157671,217.71,217.57,22.31926659]
[1733825479295,6.2838,217.77,217.62,22.31926659]
[1733825479296,0.86145385,217.73,217.62,22.31926659]
[1733825479506,0.86128048,217.76,217.63,0.34539548]
[1733825479688,0.86128048,217.76,217.6,22.31926659]
[1733825480092,0.12549,217.75,217.6,22.31926659]
[1733825480296,0.86139547,217.74,217.6,22.31926659]
[1733825480494,20.86139547,217.74,217.6,22.31926659]
[1733825480890,20.86139547,217.74,217.61,0.34560111]
[1733825481302,20.86139547,217.74,217.61,22.6648677]
[1733825482000,23.776884,217.73,217.61,22.6648677]
[1733825482204,0.86135824,217.73,217.63,22.31926659]
[1733825482412,0.86122851,217.76,217.65,22.31926659]
[1733825482711,0.86122851,217.76,217.64,22.66455815]
[1733825483911,23.776884,217.75,217.64,22.66455815]
[1733825484120,23.776884,217.73,217.64,22.66455815]
[1733825484405,23.776884,217.76,217.65,22.31926659]
[1733825484606,6.2838,217.77,217.68,22.31926659]
[1733825485288,0.86106861,217.76,217.66,0.34509153]
[1733825485605,0.86106861,217.76,217.65,22.31926659]
[1733825485910,23.776884,217.75,217.66,22.66445411]
[1733825486898,23.776884,217.76,217.67,22.31926659]
[1733825488393,23.776884,217.76,217.66,22.66435423]
[1733825491006,6.2838,217.77,217.69,20.0]
[1733825491246,6.2689,217.83,217.76,22.31926659]
[1733825491817,0.86083871,217.82,217.74,22.31926659]
[1733825492043,0.86083871,217.82,217.72,22.31926659]
[1733825492201,0.86083871,217.82,217.71,42.31926659]
[1733825492400,23.776884,217.81,217.7,22.31926659]
[1733825492599,23.776884,217.79,217.7,22.31926659]
[1733825493002,23.776884,217.81,217.7,22.31926659]
[1733825493325,23.776884,217.79,217.68,22.31926659]
[1733825493630,23.776884,217.77,217.68,22.31926659]
[1733825493802,23.776884,217.77,217.68,22.6643093]
[1733825494129,23.776884,217.77,217.68,334.6643093]
[1733825494853,23.776884,217.77,217.69,22.66426133]
[1733825495332,23.776884,217.77,217.69,14.27753186]
[1733825496205,23.776884,217.77,217.7,13.93253712]
[1733825497009,23.776884,217.77,217.71,13.93253712]
[1733825498522,23.776884,217.81,217.72,13.93253712]
[1733825498730,0.86095616,217.8,217.67,0.47046415]
[1733825498898,23.776884,217.79,217.7,13.93253712]
[1733825499102,23.776884,217.79,217.7,325.93253712]
[1733825499331,23.776884,217.79,217.71,13.93253712]
[1733825499541,23.776884,217.77,217.7,13.93253712]
[1733825500037,23.776884,217.77,217.71,13.93253712]
[1733825502829,23.776884,217.79,217.71,13.93253712]
[1733825503007,0.86105536,217.78,217.71,13.93253712]
[1733825504005,24.63793251,217.79,217.71,13.93253712]
[1733825504239,24.63793251,217.79,217.7,13.93253712]
[1733825505839,0.86104568,217.82,217.73,13.93253712]
[1733825506016,6.2689,217.83,217.76,13.93253712]
[1733825506340,7.12975353,217.83,217.76,13.93253712]
[1733825507037,7.12975353,217.83,217.75,13.93253712]
[1733825509312,0.86086972,217.82,217.71,13.93253712]
[1733825509707,0.86086972,217.82,217.72,13.93253712]
[1733825511332,0.86086972,217.82,217.71,13.93253712]
[1733825513134,0.86086972,217.82,217.68,13.93253712]
[1733825513135,20.0,217.8,217.68,13.93253712]
[1733825513313,1.5953,217.78,217.65,13.93253712]
[1733825513656,0.86124907,217.77,217.69,13.93253712]
[1733825513873,1.5953,217.78,217.7,13.93253712]
[1733825515038,1.5953,217.78,217.71,14.27743595]
[1733825516072,1.5953,217.78,217.73,13.93253712]
[1733825517463,1.5953,217.78,217.74,13.93253712]
[1733825518036,7.8642,217.83,217.75,13.93253712]
[1733825518236,7.8642,217.83,217.76,13.93253712]
[1733825518734,7.8642,217.83,217.77,13.93253712]
[1733825519060,1.5953,217.83,217.79,13.93253712]
[1733825519578,7.9404,217.88,217.79,13.93253712]
[1733825519772,0.8607172,217.87,217.79,13.93253712]
[1733825520463,7.9404,217.88,217.8,13.93253712]
[1733825520643,7.9404,217.88,217.83,13.93253712]
[1733825520837,1.5953,217.88,217.84,13.93253712]
[1733825521036,7.9404,217.94,217.87,13.93253712]
[1733825521266,7.9404,217.94,217.88,14.27607463]
[1733825521443,7.9404,217.94,217.89,13.93253712]
[1733825521644,1.5953,217.94,217.9,13.93253712]
[1733825521966,7.1833518,217.98,217.91,13.93253712]
[1733825522148,7.1833518,217.98,217.92,13.93253712]
[1733825522666,7.1833518,217.98,217.91,13.93253712]
[1733825523440,7.1833518,217.98,217.87,0.34332914]
[1733825523441,8.04360654,217.98,217.89,13.93253712]
[1733825523636,8.04360654,217.98,217.87,13.93253712]
[1733825523845,8.04360654,217.98,217.86,13.93253712]
[1733825524053,8.04360654,217.98,217.87,14.27620093]
[1733825524249,8.04360654,217.98,217.88,13.93253712]
[1733825524542,8.04360654,217.98,217.86,13.93253712]
[1733825524971,0.12549,217.97,217.86,13.93253712]
[1733825525165,0.86048561,217.96,217.85,13.93253712]
[1733825526065,0.86047421,217.95,217.86,13.93253712]
[1733825526647,0.98593149,217.97,217.86,13.93253712]
[1733825527043,20.0,217.95,217.85,13.93253712]
[1733825527245,0.86053742,217.94,217.85,13.93253712]
[1733825527558,7.1833518,217.98,217.93,13.93253712]
[1733825527763,7.1833518,217.98,217.94,13.93253712]
[1733825528142,7.1833518,217.98,217.93,13.93253712]
[1733825528349,8.04357215,217.98,217.92,13.93253712]
[1733825528550,7.1833518,217.98,217.92,13.93253712]
[1733825528865,7.1833518,217.98,217.87,0.34327125]
[1733825529072,7.1833518,217.98,217.93,13.93253712]
[1733825529771,6.3451,217.99,217.93,13.93253712]
[1733825529972,1.5953,218.0,217.95,13.93253712]
[1733825530270,1.5953,218.0,217.98,13.93253712]
[1733825530453,7.9404,218.05,217.98,13.93253712]
[1733825531969,0.85999377,218.04,217.96,13.93253712]
[1733825534676,0.85999377,218.04,217.97,13.93253712]
[1733825535289,0.12549,217.92,217.73,13.93253712]
[1733825535451,1.11175954,217.92,217.73,13.93253712]
[1733825535652,20.0,217.88,217.75,13.93253712]
[1733825535980,20.0,217.94,217.83,13.93253712]
[1733825536278,20.0,217.94,217.69,15.52953712]
[1733825536279,20.0,217.94,217.85,13.93253712]
[1733825536576,0.86042614,217.93,217.81,13.93253712]
[1733825537277,0.86042614,217.93,217.8,22.26821468]
[1733825537461,0.86042614,217.93,217.81,22.26821468]
[1733825540084,0.86042614,217.93,217.82,22.26821468]
[1733825541553,20.86053617,217.94,217.83,22.26821468]
[1733825541754,20.86053617,217.94,217.84,22.26821468]
[1733825541986,20.0,217.94,217.85,22.26821468]
[1733825542883,20.0,217.94,217.85,0.25098]
[1733825543177,0.86035921,217.96,217.85,22.51919468]
[1733825543472,6.1377,217.97,217.87,22.39370468]
[1733825543652,6.1377,217.97,217.9,22.26821468]
[1733825544685,7.6973,218.03,217.9,22.26821468]
[1733825544980,20.0,218.0,217.9,22.26821468]
[1733825545169,0.86017959,218.02,217.91,22.26821468]
[1733825545371,7.6973,218.03,217.94,22.26821468]
[1733825545680,7.6973,218.03,217.93,22.39370468]
[1733825547079,20.0,218.0,217.88,0.12549]
[1733825547414,0.8602864,217.99,217.83,22.26821468]
[1733825547585,0.8602864,217.99,217.82,22.26821468]
[1733825547754,0.8602864,217.99,217.83,0.12549]
[1733825548480,0.8602864,217.99,217.84,22.26821468]
[1733825548676,0.25098,217.98,217.84,22.26821468]
[1733825548884,0.8604848,217.97,217.82,22.26821468]
[1733825549282,0.8604848,217.97,217.83,22.26821468]
[1733825549656,0.8604848,217.97,217.84,22.26821468]
[1733825549882,0.86037684,217.99,217.85,22.26821468]
[1733825550664,0.86037684,217.99,217.84,20.12549]
[1733825550864,0.86037684,217.99,217.84,0.12549]
[1733825551177,0.86037684,217.99,217.84,0.25098]
[1733825552095,0.86037684,217.99,217.87,22.39370468]
[1733825552269,0.86037684,217.99,217.88,22.26821468]
[1733825552468,0.86037684,217.99,217.85,22.26821468]
[1733825556482,0.86037684,217.99,217.87,22.26821468]
[1733825557404,0.86037684,217.99,217.87,13.90924829]
[1733825557895,0.86037684,217.99,217.86,0.12549]
[1733825558195,0.86037684,217.99,217.83,13.90924829]
[1733825560695,0.86037684,217.99,217.85,13.90924829]
[1733825561397,0.86037684,217.99,217.87,13.90924829]
[1733825561895,0.86037684,217.99,217.85,13.90924829]
[1733825562196,0.86037684,217.99,217.83,33.90924829]
[1733825562894,0.86037684,217.99,217.83,345.90924829]
[1733825564584,0.86037684,217.99,217.85,13.90924829]
[1733825568982,0.12549,217.98,217.85,13.90924829]
[1733825569299,0.12549,217.98,217.79,13.90924829]
[1733825569300,20.0,217.92,217.79,13.90924829]
[1733825569601,1.5918,217.9,217.77,13.90924829]
[1733825569803,0.86073204,217.89,217.77,13.90924829]
[1733825570487,0.86073204,217.89,217.76,0.12549]
[1733825570678,0.86073204,217.89,217.75,13.90924829]
[1733825571397,0.86073204,217.89,217.79,13.90924829]
[1733825572583,0.86073204,217.89,217.77,13.90924829]
[1733825573409,0.86073204,217.89,217.75,13.90924829]
[1733825573701,6.2958,217.88,217.75,13.90924829]
[1733825573909,0.86088756,217.87,217.75,13.90924829]
[1733825575401,0.86088756,217.87,217.77,13.90924829]
[1733825576307,0.86088756,217.87,217.77,325.90924829]
[1733825577183,0.86088756,217.87,217.77,13.90924829]
[1733825578401,0.86088756,217.87,217.76,13.90924829]
[1733825578910,0.86088756,217.87,217.78,13.90924829]
[1733825579108,6.2958,217.94,217.86,13.90924829]
[1733825579300,6.2958,217.94,217.89,13.90924829]
[1733825579610,1.5918,217.96,217.91,13.90924829]
[1733825580615,2.45209279,217.96,217.89,13.90924829]
[1733825581314,1.5918,217.96,217.89,13.90924829]
[1733825581718,1.5918,217.96,217.91,13.90924829]
[1733825583509,1.5918,217.96,217.89,13.90924829]
[1733825584699,1.5918,217.96,217.85,312.0]
[1733825584700,0.86028642,217.95,217.85,13.90924829]
[1733825585916,1.5918,217.96,217.87,13.90924829]
[1733825586128,1.5918,217.96,217.89,13.90924829]
[1733825586627,1.5918,217.96,217.91,13.90924829]
[1733825587191,6.2958,217.99,217.91,13.90924829]
[1733825587431,6.2958,217.99,217.92,0.25098]
[1733825587620,1.6122,218.01,217.94,13.90924829]
[1733825588389,6.4494,218.05,217.95,13.90924829]
[1733825588806,6.4494,218.05,217.96,13.90924829]
[1733825589223,7.30933089,218.05,217.95,13.90924829]
[1733825589817,7.30937936,218.05,217.95,13.90924829]
[1733825590021,6.4494,218.05,217.95,13.90924829]
[1733825590311,1.6122,218.06,218.01,13.90924829]
[1733825590515,0.85980106,218.11,218.08,20.0]
[1733825590840,19.03510701,218.14,218.09,13.90924829]
[1733825591133,19.03510701,218.14,218.07,13.90924829]
[1733825592132,19.03510701,218.14,218.09,13.90924829]
[1733825592338,19.03510701,218.14,218.07,13.90924829]
[1733825593612,19.03510701,218.14,218.09,13.90924829]
[1733825593826,19.03510701,218.14,218.1,13.90924829]
[1733825594434,19.03510701,218.14,218.06,0.25098]
[1733825594616,19.03510701,218.14,218.12,33.90924829]
[1733825595233,19.03510701,218.14,218.12,34.03473829]
[1733825597925,19.03510701,218.14,218.08,20.0]
[1733825598126,19.03510701,218.14,218.09,13.90924829]
[1733825598336,19.03510701,218.14,218.05,312.0]
[1733825598532,19.03510701,218.14,218.13,0.12549]
[1733825598736,16.76876505,218.14,218.13,25.74608549]
[1733825598939,0.5662334,218.17,218.15,0.12549]
[1733825599143,0.5662334,218.17,218.16,28.23895268]
[1733825599343,0.5662334,218.17,218.16,28.27542378]
[1733825599535,2.37380324,218.34,218.16,42.43018163]
[1733825599741,2.37380324,218.34,218.18,41.10762081]
[1733825599968,2.37380324,218.34,218.18,46.63617642]
[1733825600341,2.37380324,218.34,218.18,46.38519642]
[1733825600645,2.37380324,218.34,218.18,33.90924829]
[1733825600843,2.37380324,218.34,218.18,71.23488406]
[1733825601141,0.25098,218.33,218.18,57.32563577]
[1733825601356,0.25098,218.31,218.29,14.11856113]
[1733825602437,6.2826,218.28,218.26,42.34626614]
[1733825602636,1.11020001,218.27,218.24,42.32908881]
[1733825603043,1.11020001,218.27,218.24,28.21758664]
[1733825603426,20.12549,218.25,218.24,28.21758664]
[1733825603623,20.25098,218.25,218.24,28.21758664]
[1733825603824,20.25098,218.25,218.19,42.33100937]
[1733825603825,0.12549,218.24,218.19,42.33100937]
[1733825604148,21.41641942,218.25,218.19,42.33100937]
[1733825604149,0.12549,218.22,218.19,42.33100937]
[1733825604643,10.0,218.22,218.19,42.33100937]
[1733825604835,0.85941812,218.21,218.19,42.33100937]
[1733825605019,20.25098,218.2,218.19,39.89330937]
[1733825605220,20.25098,218.2,218.16,21.80965094]
[1733825605221,26.53358,218.2,218.16,21.80965094]
[1733825605454,0.12549,218.18,218.16,21.80965094]
[1733825605660,20.12549,218.17,218.16,17.32895094]
[1733825605838,21.11057001,218.17,218.16,12.27905094]
[1733825606040,21.11057001,218.17,218.16,9.06675094]
[1733825606245,21.11057001,218.17,218.16,6.74415094]
[1733825606447,21.11057001,218.17,218.16,4.42155094]
[1733825606950,20.12549,218.17,218.16,4.42155094]
[1733825607851,20.25098,218.16,218.15,32.02884231]
[1733825608042,47.247964,218.12,218.11,15.16630922]
[1733825608230,44.027864,218.11,218.1,35.88837512]
[1733825608426,23.902374,218.09,218.08,7.05340725]
[1733825608744,24.63691863,218.09,218.08,7.05340725]
[1733825609844,24.63691863,218.09,217.96,37.50739087]
[1733825610047,20.86003463,218.09,217.96,37.50739087]